Workbook

Sheet סיכום תקציב מתחילת השנה עד כה
A2: 2005 ממשי מול תקציב שנת
A5: חשבון | C5: מתחילת השנה | D5: מתחילת השנה | E5: נותר | F5: נותר
A6: מספר | B6: שם החשבון | C6: ממשי | D6: תקציב | E6: תקציב ש"ח | F6: תקציב %
A8: 1000 | B8: משרד | C8: ='הוצאות חודשיות'!O7 -> ₪150.00 | D8: ₪50,000.00 | E8: =SUM(D8-C8) -> ₪49,850.00 | F8: =SUM(E8/D8) -> 99.70%
A10: 2000 | B10: חנות | C10: ='הוצאות חודשיות'!O9 -> ₪905.27 | D10: ₪75,000.00 | E10: =SUM(D10-C10) -> ₪74,094.73 | F10: =SUM(E10/D10) -> 98.79%
A12: 3000 | B12: צוות | C12: ='הוצאות חודשיות'!O11 -> ₪2,500.00 | D12: ₪100,000.00 | E12: =SUM(D12-C12) -> ₪97,500.00 | F12: =SUM(E12/D12) -> 97.50%
A14: 4000 | B14: ציוד | C14: ='הוצאות חודשיות'!O13 -> ₪1,854.00 | D14: ₪25,000.00 | E14: =SUM(D14-C14) -> ₪23,146.00 | F14: =SUM(E14/D14) -> 92.58%
A16: 5000 | B16: אחר | C16: ='הוצאות חודשיות'!O15 -> ₪35.60 | D16: ₪50,000.00 | E16: =SUM(D16-C16) -> ₪49,964.40 | F16: =SUM(E16/D16) -> 99.93%
B18: סך הכל | C18: =SUM(C8:C16) -> ₪5,444.87 | D18: =SUM(D8:D16) -> ₪300,000.00 | E18: =SUM(E8:E16) -> ₪294,555.13 | F18: =SUM(E18/D18) -> 98.19%

Sheet הוצאות חודשיות
A2: הוצאות חודשיות לשנת 2005
A5: מספר חשבון | B5: שם חשבון | C5: 2005-01-01 | D5: 2005-02-01 | E5: 2005-03-01 | F5: 2005-04-01 | G5: 2005-05-01 | H5: 2005-06-01 | I5: 2005-07-01 | J5: 2005-08-01 | K5: 2005-09-01 | L5: 2005-10-01 | M5: 2005-11-01 | N5: 2005-12-01 | O5: 2005
A7: 1000 | B7: משרד | C7: =SUMIF('1000-משרד'!$J:$J,"="&(TEXT(C$5,"mmm-yy")),'1000-משרד'!$E:$E) -> ₪100.00 | D7: =SUMIF('1000-משרד'!$J:$J,"="&(TEXT(D$5,"mmm-yy")),'1000-משרד'!$E:$E) -> ₪50.00 | E7: =SUMIF('1000-משרד'!$J:$J,"="&(TEXT(E$5,"mmm-yy")),'1000-משרד'!$E:$E) -> 0 | F7: =SUMIF('1000-משרד'!$J:$J,"="&(TEXT(F$5,"mmm-yy")),'1000-משרד'!$E:$E) -> 0 | G7: =SUMIF('1000-משרד'!$J:$J,"="&(TEXT(G$5,"mmm-yy")),'1000-משרד'!$E:$E) -> 0 | H7: =SUMIF('1000-משרד'!$J:$J,"="&(TEXT(H$5,"mmm-yy")),'1000-משרד'!$E:$E) -> 0 | I7: =SUMIF('1000-משרד'!$J:$J,"="&(TEXT(I$5,"mmm-yy")),'1000-משרד'!$E:$E) -> 0 | J7: =SUMIF('1000-משרד'!$J:$J,"="&(TEXT(J$5,"mmm-yy")),'1000-משרד'!$E:$E) -> 0 | K7: =SUMIF('1000-משרד'!$J:$J,"="&(TEXT(K$5,"mmm-yy")),'1000-משרד'!$E:$E) -> 0 | L7: =SUMIF('1000-משרד'!$J:$J,"="&(TEXT(L$5,"mmm-yy")),'1000-משרד'!$E:$E) -> 0 | M7: =SUMIF('1000-משרד'!$J:$J,"="&(TEXT(M$5,"mmm-yy")),'1000-משרד'!$E:$E) -> 0 | N7: =SUMIF('1000-משרד'!$J:$J,"="&(TEXT(N$5,"mmm-yy")),'1000-משרד'!$E:$E) -> 0 | O7: =SUM(C7:N7) -> ₪150.00
A9: 2000 | B9: חנות | C9: =SUMIF('2000-חנות'!$J:$J,"="&(TEXT(C$5,"mmm-yy")),'2000-חנות'!$E:$E) -> ₪905.27 | D9: =SUMIF('2000-חנות'!$J:$J,"="&(TEXT(D$5,"mmm-yy")),'2000-חנות'!$E:$E) -> 0 | E9: =SUMIF('2000-חנות'!$J:$J,"="&(TEXT(E$5,"mmm-yy")),'2000-חנות'!$E:$E) -> 0 | F9: =SUMIF('2000-חנות'!$J:$J,"="&(TEXT(F$5,"mmm-yy")),'2000-חנות'!$E:$E) -> 0 | G9: =SUMIF('2000-חנות'!$J:$J,"="&(TEXT(G$5,"mmm-yy")),'2000-חנות'!$E:$E) -> 0 | H9: =SUMIF('2000-חנות'!$J:$J,"="&(TEXT(H$5,"mmm-yy")),'2000-חנות'!$E:$E) -> 0 | I9: =SUMIF('2000-חנות'!$J:$J,"="&(TEXT(I$5,"mmm-yy")),'2000-חנות'!$E:$E) -> 0 | J9: =SUMIF('2000-חנות'!$J:$J,"="&(TEXT(J$5,"mmm-yy")),'2000-חנות'!$E:$E) -> 0 | K9: =SUMIF('2000-חנות'!$J:$J,"="&(TEXT(K$5,"mmm-yy")),'2000-חנות'!$E:$E) -> 0 | L9: =SUMIF('2000-חנות'!$J:$J,"="&(TEXT(L$5,"mmm-yy")),'2000-חנות'!$E:$E) -> 0 | M9: =SUMIF('2000-חנות'!$J:$J,"="&(TEXT(M$5,"mmm-yy")),'2000-חנות'!$E:$E) -> 0 | N9: =SUMIF('2000-חנות'!$J:$J,"="&(TEXT(N$5,"mmm-yy")),'2000-חנות'!$E:$E) -> 0 | O9: =SUM(C9:N9) -> ₪905.27
A11: 3000 | B11: צוות | C11: =SUMIF('3000-צוות'!$J:$J,"="&(TEXT(C$5,"mmm-yy")),'3000-צוות'!$E:$E) -> 0 | D11: =SUMIF('3000-צוות'!$J:$J,"="&(TEXT(D$5,"mmm-yy")),'3000-צוות'!$E:$E) -> ₪2,500.00 | E11: =SUMIF('3000-צוות'!$J:$J,"="&(TEXT(E$5,"mmm-yy")),'3000-צוות'!$E:$E) -> 0 | F11: =SUMIF('3000-צוות'!$J:$J,"="&(TEXT(F$5,"mmm-yy")),'3000-צוות'!$E:$E) -> 0 | G11: =SUMIF('3000-צוות'!$J:$J,"="&(TEXT(G$5,"mmm-yy")),'3000-צוות'!$E:$E) -> 0 | H11: =SUMIF('3000-צוות'!$J:$J,"="&(TEXT(H$5,"mmm-yy")),'3000-צוות'!$E:$E) -> 0 | I11: =SUMIF('3000-צוות'!$J:$J,"="&(TEXT(I$5,"mmm-yy")),'3000-צוות'!$E:$E) -> 0 | J11: =SUMIF('3000-צוות'!$J:$J,"="&(TEXT(J$5,"mmm-yy")),'3000-צוות'!$E:$E) -> 0 | K11: =SUMIF('3000-צוות'!$J:$J,"="&(TEXT(K$5,"mmm-yy")),'3000-צוות'!$E:$E) -> 0 | L11: =SUMIF('3000-צוות'!$J:$J,"="&(TEXT(L$5,"mmm-yy")),'3000-צוות'!$E:$E) -> 0 | M11: =SUMIF('3000-צוות'!$J:$J,"="&(TEXT(M$5,"mmm-yy")),'3000-צוות'!$E:$E) -> 0 | N11: =SUMIF('3000-צוות'!$J:$J,"="&(TEXT(N$5,"mmm-yy")),'3000-צוות'!$E:$E) -> 0 | O11: =SUM(C11:N11) -> ₪2,500.00
A13: 4000 | B13: ציוד | C13: =SUMIF('4000-ציוד'!$J:$J,"="&(TEXT(C$5,"mmm-yy")),'4000-ציוד'!$E:$E) -> ₪1,854.00 | D13: =SUMIF('4000-ציוד'!$J:$J,"="&(TEXT(D$5,"mmm-yy")),'4000-ציוד'!$E:$E) -> 0 | E13: =SUMIF('4000-ציוד'!$J:$J,"="&(TEXT(E$5,"mmm-yy")),'4000-ציוד'!$E:$E) -> 0 | F13: =SUMIF('4000-ציוד'!$J:$J,"="&(TEXT(F$5,"mmm-yy")),'4000-ציוד'!$E:$E) -> 0 | G13: =SUMIF('4000-ציוד'!$J:$J,"="&(TEXT(G$5,"mmm-yy")),'4000-ציוד'!$E:$E) -> 0 | H13: =SUMIF('4000-ציוד'!$J:$J,"="&(TEXT(H$5,"mmm-yy")),'4000-ציוד'!$E:$E) -> 0 | I13: =SUMIF('4000-ציוד'!$J:$J,"="&(TEXT(I$5,"mmm-yy")),'4000-ציוד'!$E:$E) -> 0 | J13: =SUMIF('4000-ציוד'!$J:$J,"="&(TEXT(J$5,"mmm-yy")),'4000-ציוד'!$E:$E) -> 0 | K13: =SUMIF('4000-ציוד'!$J:$J,"="&(TEXT(K$5,"mmm-yy")),'4000-ציוד'!$E:$E) -> 0 | L13: =SUMIF('4000-ציוד'!$J:$J,"="&(TEXT(L$5,"mmm-yy")),'4000-ציוד'!$E:$E) -> 0 | M13: =SUMIF('4000-ציוד'!$J:$J,"="&(TEXT(M$5,"mmm-yy")),'4000-ציוד'!$E:$E) -> 0 | N13: =SUMIF('4000-ציוד'!$J:$J,"="&(TEXT(N$5,"mmm-yy")),'4000-ציוד'!$E:$E) -> 0 | O13: =SUM(C13:N13) -> ₪1,854.00
A15: 5000 | B15: אחר | C15: =SUMIF('5000-אחר'!$J:$J,"="&(TEXT(C$5,"mmm-yy")),'5000-אחר'!$E:$E) -> ₪35.60 | D15: =SUMIF('5000-אחר'!$J:$J,"="&(TEXT(D$5,"mmm-yy")),'5000-אחר'!$E:$E) -> 0 | E15: =SUMIF('5000-אחר'!$J:$J,"="&(TEXT(E$5,"mmm-yy")),'5000-אחר'!$E:$E) -> 0 | F15: =SUMIF('5000-אחר'!$J:$J,"="&(TEXT(F$5,"mmm-yy")),'5000-אחר'!$E:$E) -> 0 | G15: =SUMIF('5000-אחר'!$J:$J,"="&(TEXT(G$5,"mmm-yy")),'5000-אחר'!$E:$E) -> 0 | H15: =SUMIF('5000-אחר'!$J:$J,"="&(TEXT(H$5,"mmm-yy")),'5000-אחר'!$E:$E) -> 0 | I15: =SUMIF('5000-אחר'!$J:$J,"="&(TEXT(I$5,"mmm-yy")),'5000-אחר'!$E:$E) -> 0 | J15: =SUMIF('5000-אחר'!$J:$J,"="&(TEXT(J$5,"mmm-yy")),'5000-אחר'!$E:$E) -> 0 | K15: =SUMIF('5000-אחר'!$J:$J,"="&(TEXT(K$5,"mmm-yy")),'5000-אחר'!$E:$E) -> 0 | L15: =SUMIF('5000-אחר'!$J:$J,"="&(TEXT(L$5,"mmm-yy")),'5000-אחר'!$E:$E) -> 0 | M15: =SUMIF('5000-אחר'!$J:$J,"="&(TEXT(M$5,"mmm-yy")),'5000-אחר'!$E:$E) -> 0 | N15: =SUMIF('5000-אחר'!$J:$J,"="&(TEXT(N$5,"mmm-yy")),'5000-אחר'!$E:$E) -> 0 | O15: =SUM(C15:N15) -> ₪35.60
B17: סך הכל | C17: =SUM(C7:C15) -> ₪2,894.87 | D17: ₪2,550.00 | E17: 0 | F17: 0 | G17: 0 | H17: 0 | I17: 0 | J17: 0 | K17: 0 | L17: 0 | M17: 0 | N17: 0 | O17: =SUM(C17:N17) -> ₪5,444.87

Sheet 1000-משרד
A1: G/L - הוצאה | B1: תאריך החשבונית | C1: חשבונית # | D1: לכבוד | E1: סכום ההמחאה | F1: שם מקבל התשלום | G1: שימוש בהמחאה | H1: אופן הרכישה | I1: תאריך | J1: שדה מפתח מורכב
A2: 1000 | B2: 2005-01-15 | C2: 1 | D2: דוד דניאלס | E2: ₪100.00 | F2: שירות שליחים מהיר | G2: תקליטורים ריקים | H2: יתרת זכות | I2: 2005-01-20 | J2: =TEXT(B2,"mmm-yy") -> Jan-05
A3: 1000 | B3: 2005-02-07 | C3: 5 | D3: דוד דניאלס | E3: ₪50.00 | F3: שירות שליחים מהיר | G3: דיו למדפסת | H3: יתרת זכות | I3: 2005-02-10 | J3: Feb-05
A4: 1000 | J4: Jan-00
A5: 1000 | J5: Jan-00
A6: 1000 | J6: Jan-00
A7: 1000 | J7: Jan-00
A8: 1000 | J8: Jan-00
A9: 1000 | J9: Jan-00
A10: 1000 | J10: Jan-00
A11: 1000 | J11: Jan-00
A12: 1000 | J12: Jan-00
A13: 1000 | J13: Jan-00
A14: 1000 | J14: Jan-00
A15: 1000 | J15: Jan-00
A16: 1000 | J16: Jan-00
A17: 1000 | J17: Jan-00
A18: 1000 | J18: Jan-00
A19: 1000 | J19: Jan-00
A20: 1000 | J20: Jan-00
A21: 1000 | J21: Jan-00
A22: 1000 | J22: Jan-00
A23: 1000 | J23: Jan-00
A24: 1000 | J24: Jan-00
A25: 1000 | J25: Jan-00
A26: 1000 | J26: Jan-00
A27: 1000 | J27: Jan-00
A28: 1000 | J28: Jan-00
A29: 1000 | J29: Jan-00
A30: 1000 | J30: Jan-00
A31: 1000 | J31: Jan-00
A32: 1000 | J32: Jan-00
A33: 1000 | J33: Jan-00
A34: 1000 | J34: =TEXT(B34,"mmm-yy") -> Jan-00
A35: 1000 | J35: Jan-00
A36: 1000 | J36: Jan-00
A37: 1000 | J37: Jan-00
A38: 1000 | J38: Jan-00
A39: 1000 | J39: Jan-00
A40: 1000 | J40: Jan-00
A41: 1000 | J41: Jan-00
A42: 1000 | J42: Jan-00
A43: 1000 | J43: Jan-00
A44: 1000 | J44: Jan-00
A45: 1000 | J45: Jan-00
A46: 1000 | J46: Jan-00
A47: 1000 | J47: Jan-00
A48: 1000 | J48: Jan-00
A49: 1000 | J49: Jan-00
A50: 1000 | J50: Jan-00
A51: 1000 | J51: Jan-00
A52: 1000 | J52: Jan-00
A53: 1000 | J53: Jan-00
A54: 1000 | J54: Jan-00
A55: 1000 | J55: Jan-00
A56: 1000 | J56: Jan-00
A57: 1000 | J57: Jan-00
A58: 1000 | J58: Jan-00
A59: 1000 | J59: Jan-00
A60: 1000 | J60: Jan-00
A61: 1000 | J61: Jan-00
A62: 1000 | J62: Jan-00
A63: 1000 | J63: Jan-00
A64: 1000 | J64: Jan-00
A65: 1000 | J65: Jan-00
A66: 1000 | J66: =TEXT(B66,"mmm-yy") -> Jan-00
A67: 1000 | J67: Jan-00
A68: 1000 | J68: Jan-00
A69: 1000 | J69: Jan-00
A70: 1000 | J70: Jan-00
A71: 1000 | J71: Jan-00
A72: 1000 | J72: Jan-00
A73: 1000 | J73: Jan-00
A74: 1000 | J74: Jan-00
A75: 1000 | J75: Jan-00
A76: 1000 | J76: Jan-00
A77: 1000 | J77: Jan-00
A78: 1000 | J78: Jan-00
A79: 1000 | J79: Jan-00
A80: 1000 | J80: Jan-00
A81: 1000 | J81: Jan-00
A82: 1000 | J82: Jan-00
A83: 1000 | J83: Jan-00
A84: 1000 | J84: Jan-00
A85: 1000 | J85: Jan-00
A86: 1000 | J86: Jan-00
A87: 1000 | J87: Jan-00
A88: 1000 | J88: Jan-00
A89: 1000 | J89: Jan-00
A90: 1000 | J90: Jan-00
A91: 1000 | J91: Jan-00
A92: 1000 | J92: Jan-00
A93: 1000 | J93: Jan-00
A94: 1000 | J94: Jan-00
A95: 1000 | J95: Jan-00
A96: 1000 | J96: Jan-00
A97: 1000 | J97: Jan-00
A98: 1000 | J98: Jan-00
A99: 1000 | J99: Jan-00
A100: 1000 | J100: Jan-00

Sheet 2000-חנות
A1: G/L - הוצאה | B1: תאריך חשבונית | C1: חשבונית # | D1: לכבוד | E1: סכום ההמחאה | F1: שם מקבל התשלום | G1: שימוש בהמחאה | H1: אופן הרכישה | I1: תאריך | J1: שדה מפתח מורכב
A2: 2000 | B2: 2005-01-17 | C2: 2 | D2: מארק פבר | E2: ₪550.00 | F2: פבריקם בע"מ | G2: החלפת חלון בחנות | H2: יתרת זכות | I2: 2005-01-20 | J2: =TEXT(B2,"mmm-yy") -> Jan-05
A3: 2000 | B3: 2005-01-19 | C3: 3 | D3: מארק פבר | E3: ₪355.27 | F3: תאגיד א. דנון | G3: קופה חדשה | H3: יתרת זכות | I3: 2005-01-20 | J3: Jan-05
A4: 2000 | J4: Jan-00
A5: 2000 | J5: Jan-00
A6: 2000 | J6: Jan-00
A7: 2000 | J7: Jan-00
A8: 2000 | J8: Jan-00
A9: 2000 | J9: Jan-00
A10: 2000 | J10: Jan-00
A11: 2000 | J11: Jan-00
A12: 2000 | J12: Jan-00
A13: 2000 | J13: Jan-00
A14: 2000 | J14: Jan-00
A15: 2000 | J15: Jan-00
A16: 2000 | J16: Jan-00
A17: 2000 | J17: Jan-00
A18: 2000 | J18: Jan-00
A19: 2000 | J19: Jan-00
A20: 2000 | J20: Jan-00
A21: 2000 | J21: Jan-00
A22: 2000 | J22: Jan-00
A23: 2000 | J23: Jan-00
A24: 2000 | J24: Jan-00
A25: 2000 | J25: Jan-00
A26: 2000 | J26: Jan-00
A27: 2000 | J27: Jan-00
A28: 2000 | J28: Jan-00
A29: 2000 | J29: Jan-00
A30: 2000 | J30: Jan-00
A31: 2000 | J31: Jan-00
A32: 2000 | J32: Jan-00
A33: 2000 | J33: Jan-00
A34: 2000 | J34: =TEXT(B34,"mmm-yy") -> Jan-00
A35: 2000 | J35: Jan-00
A36: 2000 | J36: Jan-00
A37: 2000 | J37: Jan-00
A38: 2000 | J38: Jan-00
A39: 2000 | J39: Jan-00
A40: 2000 | J40: Jan-00
A41: 2000 | J41: Jan-00
A42: 2000 | J42: Jan-00
A43: 2000 | J43: Jan-00
A44: 2000 | J44: Jan-00
A45: 2000 | J45: Jan-00
A46: 2000 | J46: Jan-00
A47: 2000 | J47: Jan-00
A48: 2000 | J48: Jan-00
A49: 2000 | J49: Jan-00
A50: 2000 | J50: Jan-00
A51: 2000 | J51: Jan-00
A52: 2000 | J52: Jan-00
A53: 2000 | J53: Jan-00
A54: 2000 | J54: Jan-00
A55: 2000 | J55: Jan-00
A56: 2000 | J56: Jan-00
A57: 2000 | J57: Jan-00
A58: 2000 | J58: Jan-00
A59: 2000 | J59: Jan-00
A60: 2000 | J60: Jan-00
A61: 2000 | J61: Jan-00
A62: 2000 | J62: Jan-00
A63: 2000 | J63: Jan-00
A64: 2000 | J64: Jan-00
A65: 2000 | J65: Jan-00
A66: 2000 | J66: =TEXT(B66,"mmm-yy") -> Jan-00
A67: 2000 | J67: Jan-00
A68: 2000 | J68: Jan-00
A69: 2000 | J69: Jan-00
A70: 2000 | J70: Jan-00
A71: 2000 | J71: Jan-00
A72: 2000 | J72: Jan-00
A73: 2000 | J73: Jan-00
A74: 2000 | J74: Jan-00
A75: 2000 | J75: Jan-00
A76: 2000 | J76: Jan-00
A77: 2000 | J77: Jan-00
A78: 2000 | J78: Jan-00
A79: 2000 | J79: Jan-00
A80: 2000 | J80: Jan-00
A81: 2000 | J81: Jan-00
A82: 2000 | J82: Jan-00
A83: 2000 | J83: Jan-00
A84: 2000 | J84: Jan-00
A85: 2000 | J85: Jan-00
A86: 2000 | J86: Jan-00
A87: 2000 | J87: Jan-00
A88: 2000 | J88: Jan-00
A89: 2000 | J89: Jan-00
A90: 2000 | J90: Jan-00
A91: 2000 | J91: Jan-00
A92: 2000 | J92: Jan-00
A93: 2000 | J93: Jan-00
A94: 2000 | J94: Jan-00
A95: 2000 | J95: Jan-00
A96: 2000 | J96: Jan-00
A97: 2000 | J97: Jan-00
A98: 2000 | J98: Jan-00
A99: 2000 | J99: Jan-00
A100: 2000 | J100: Jan-00

Sheet 3000-צוות
A1: G/L - הוצאה | B1: תאריך החשבונית | C1: חשבונית # | D1: לכבוד | E1: סכום ההמחאה | F1: שם מקבל התשלום | G1: שימוש בהמחאה | H1: אופן הרכישה | I1: תאריך | J1: שדה מפתח מורכב
A2: 3000 | B2: 2005-02-10 | C2: 6 | D2: רוברט אוהרה | E2: ₪2,500.00 | F2: המכון לעיצוב גרפי | G2: מעצב חוזים | H2: המחאה | I2: 2005-02-20 | J2: =TEXT(B2,"mmm-yy") -> Feb-05
A3: 3000 | J3: Jan-00
A4: 3000 | J4: Jan-00
A5: 3000 | J5: Jan-00
A6: 3000 | J6: Jan-00
A7: 3000 | J7: Jan-00
A8: 3000 | J8: Jan-00
A9: 3000 | J9: Jan-00
A10: 3000 | J10: Jan-00
A11: 3000 | J11: Jan-00
A12: 3000 | J12: Jan-00
A13: 3000 | J13: Jan-00
A14: 3000 | J14: Jan-00
A15: 3000 | J15: Jan-00
A16: 3000 | J16: Jan-00
A17: 3000 | J17: Jan-00
A18: 3000 | J18: Jan-00
A19: 3000 | J19: Jan-00
A20: 3000 | J20: Jan-00
A21: 3000 | J21: Jan-00
A22: 3000 | J22: Jan-00
A23: 3000 | J23: Jan-00
A24: 3000 | J24: Jan-00
A25: 3000 | J25: Jan-00
A26: 3000 | J26: Jan-00
A27: 3000 | J27: Jan-00
A28: 3000 | J28: Jan-00
A29: 3000 | J29: Jan-00
A30: 3000 | J30: Jan-00
A31: 3000 | J31: Jan-00
A32: 3000 | J32: Jan-00
A33: 3000 | J33: Jan-00
A34: 3000 | J34: =TEXT(B34,"mmm-yy") -> Jan-00
A35: 3000 | J35: Jan-00
A36: 3000 | J36: Jan-00
A37: 3000 | J37: Jan-00
A38: 3000 | J38: Jan-00
A39: 3000 | J39: Jan-00
A40: 3000 | J40: Jan-00
A41: 3000 | J41: Jan-00
A42: 3000 | J42: Jan-00
A43: 3000 | J43: Jan-00
A44: 3000 | J44: Jan-00
A45: 3000 | J45: Jan-00
A46: 3000 | J46: Jan-00
A47: 3000 | J47: Jan-00
A48: 3000 | J48: Jan-00
A49: 3000 | J49: Jan-00
A50: 3000 | J50: Jan-00
A51: 3000 | J51: Jan-00
A52: 3000 | J52: Jan-00
A53: 3000 | J53: Jan-00
A54: 3000 | J54: Jan-00
A55: 3000 | J55: Jan-00
A56: 3000 | J56: Jan-00
A57: 3000 | J57: Jan-00
A58: 3000 | J58: Jan-00
A59: 3000 | J59: Jan-00
A60: 3000 | J60: Jan-00
A61: 3000 | J61: Jan-00
A62: 3000 | J62: Jan-00
A63: 3000 | J63: Jan-00
A64: 3000 | J64: Jan-00
A65: 3000 | J65: Jan-00
A66: 3000 | J66: =TEXT(B66,"mmm-yy") -> Jan-00
A67: 3000 | J67: Jan-00
A68: 3000 | J68: Jan-00
A69: 3000 | J69: Jan-00
A70: 3000 | J70: Jan-00
A71: 3000 | J71: Jan-00
A72: 3000 | J72: Jan-00
A73: 3000 | J73: Jan-00
A74: 3000 | J74: Jan-00
A75: 3000 | J75: Jan-00
A76: 3000 | J76: Jan-00
A77: 3000 | J77: Jan-00
A78: 3000 | J78: Jan-00
A79: 3000 | J79: Jan-00
A80: 3000 | J80: Jan-00
A81: 3000 | J81: Jan-00
A82: 3000 | J82: Jan-00
A83: 3000 | J83: Jan-00
A84: 3000 | J84: Jan-00
A85: 3000 | J85: Jan-00
A86: 3000 | J86: Jan-00
A87: 3000 | J87: Jan-00
A88: 3000 | J88: Jan-00
A89: 3000 | J89: Jan-00
A90: 3000 | J90: Jan-00
A91: 3000 | J91: Jan-00
A92: 3000 | J92: Jan-00
A93: 3000 | J93: Jan-00
A94: 3000 | J94: Jan-00
A95: 3000 | J95: Jan-00
A96: 3000 | J96: Jan-00
A97: 3000 | J97: Jan-00
A98: 3000 | J98: Jan-00
A99: 3000 | J99: Jan-00
A100: 3000 | J100: Jan-00

Sheet 4000-ציוד
A1: ספר חשבונות ראשי - הוצאה | B1: תאריך החשבונית | C1: חשבונית # | D1: לכבוד | E1: סכום ההמחאה | F1: שם מקבל התשלום | G1: שימוש בהמחאה | H1: אופן הרכישה | I1: תאריך | J1: שדה מפתח מורכב
A2: 4000 | B2: 2005-01-25 | C2: 5 | D2: רוברט וולטרס | E2: ₪1,854.00 | F2: טריי מחקרים | G2: מחשב נישא חדש | H2: יתרת זכות | I2: 2005-01-25 | J2: =TEXT(B2,"mmm-yy") -> Jan-05
A3: 4000 | J3: Jan-00
A4: 4000 | J4: Jan-00
A5: 4000 | J5: Jan-00
A6: 4000 | J6: Jan-00
A7: 4000 | J7: Jan-00
A8: 4000 | J8: Jan-00
A9: 4000 | J9: Jan-00
A10: 4000 | J10: Jan-00
A11: 4000 | J11: Jan-00
A12: 4000 | J12: Jan-00
A13: 4000 | J13: Jan-00
A14: 4000 | J14: Jan-00
A15: 4000 | J15: Jan-00
A16: 4000 | J16: Jan-00
A17: 4000 | J17: Jan-00
A18: 4000 | J18: Jan-00
A19: 4000 | J19: Jan-00
A20: 4000 | J20: Jan-00
A21: 4000 | J21: Jan-00
A22: 4000 | J22: Jan-00
A23: 4000 | J23: Jan-00
A24: 4000 | J24: Jan-00
A25: 4000 | J25: Jan-00
A26: 4000 | J26: Jan-00
A27: 4000 | J27: Jan-00
A28: 4000 | J28: Jan-00
A29: 4000 | J29: Jan-00
A30: 4000 | J30: Jan-00
A31: 4000 | J31: Jan-00
A32: 4000 | J32: Jan-00
A33: 4000 | J33: Jan-00
A34: 4000 | J34: =TEXT(B34,"mmm-yy") -> Jan-00
A35: 4000 | J35: Jan-00
A36: 4000 | J36: Jan-00
A37: 4000 | J37: Jan-00
A38: 4000 | J38: Jan-00
A39: 4000 | J39: Jan-00
A40: 4000 | J40: Jan-00
A41: 4000 | J41: Jan-00
A42: 4000 | J42: Jan-00
A43: 4000 | J43: Jan-00
A44: 4000 | J44: Jan-00
A45: 4000 | J45: Jan-00
A46: 4000 | J46: Jan-00
A47: 4000 | J47: Jan-00
A48: 4000 | J48: Jan-00
A49: 4000 | J49: Jan-00
A50: 4000 | J50: Jan-00
A51: 4000 | J51: Jan-00
A52: 4000 | J52: Jan-00
A53: 4000 | J53: Jan-00
A54: 4000 | J54: Jan-00
A55: 4000 | J55: Jan-00
A56: 4000 | J56: Jan-00
A57: 4000 | J57: Jan-00
A58: 4000 | J58: Jan-00
A59: 4000 | J59: Jan-00
A60: 4000 | J60: Jan-00
A61: 4000 | J61: Jan-00
A62: 4000 | J62: Jan-00
A63: 4000 | J63: Jan-00
A64: 4000 | J64: Jan-00
A65: 4000 | J65: Jan-00
A66: 4000 | J66: =TEXT(B66,"mmm-yy") -> Jan-00
A67: 4000 | J67: Jan-00
A68: 4000 | J68: Jan-00
A69: 4000 | J69: Jan-00
A70: 4000 | J70: Jan-00
A71: 4000 | J71: Jan-00
A72: 4000 | J72: Jan-00
A73: 4000 | J73: Jan-00
A74: 4000 | J74: Jan-00
A75: 4000 | J75: Jan-00
A76: 4000 | J76: Jan-00
A77: 4000 | J77: Jan-00
A78: 4000 | J78: Jan-00
A79: 4000 | J79: Jan-00
A80: 4000 | J80: Jan-00
A81: 4000 | J81: Jan-00
A82: 4000 | J82: Jan-00
A83: 4000 | J83: Jan-00
A84: 4000 | J84: Jan-00
A85: 4000 | J85: Jan-00
A86: 4000 | J86: Jan-00
A87: 4000 | J87: Jan-00
A88: 4000 | J88: Jan-00
A89: 4000 | J89: Jan-00
A90: 4000 | J90: Jan-00
A91: 4000 | J91: Jan-00
A92: 4000 | J92: Jan-00
A93: 4000 | J93: Jan-00
A94: 4000 | J94: Jan-00
A95: 4000 | J95: Jan-00
A96: 4000 | J96: Jan-00
A97: 4000 | J97: Jan-00
A98: 4000 | J98: Jan-00
A99: 4000 | J99: Jan-00
A100: 4000 | J100: Jan-00

Sheet 5000-אחר
A1: ספר חשבונות ראשי - הוצאה | B1: תאריך חשבונית | C1: חשבונית # | D1: לכבוד | E1: סכום ההמחאה | F1: שם מקבל התשלום | G1: שימוש בהמחאה | H1: אופן הרכישה | I1: תאריך | J1: שדה מפתח מורכב
A2: 5000 | B2: 2005-01-23 | C2: 4 | D2: בוב גייג' | E2: ₪35.60 | F2: בוב גייג' | G2: נסיעה במונית | H2: המחאה | I2: 2005-01-23 | J2: =TEXT(B2,"mmm-yy") -> Jan-05
A3: 5000 | J3: Jan-00
A4: 5000 | J4: Jan-00
A5: 5000 | J5: Jan-00
A6: 5000 | J6: Jan-00
A7: 5000 | J7: Jan-00
A8: 5000 | J8: Jan-00
A9: 5000 | J9: Jan-00
A10: 5000 | J10: Jan-00
A11: 5000 | J11: Jan-00
A12: 5000 | J12: Jan-00
A13: 5000 | J13: Jan-00
A14: 5000 | J14: Jan-00
A15: 5000 | J15: Jan-00
A16: 5000 | J16: Jan-00
A17: 5000 | J17: Jan-00
A18: 5000 | J18: Jan-00
A19: 5000 | J19: Jan-00
A20: 5000 | J20: Jan-00
A21: 5000 | J21: Jan-00
A22: 5000 | J22: Jan-00
A23: 5000 | J23: Jan-00
A24: 5000 | J24: Jan-00
A25: 5000 | J25: Jan-00
A26: 5000 | J26: Jan-00
A27: 5000 | J27: Jan-00
A28: 5000 | J28: Jan-00
A29: 5000 | J29: Jan-00
A30: 5000 | J30: Jan-00
A31: 5000 | J31: Jan-00
A32: 5000 | J32: Jan-00
A33: 5000 | J33: Jan-00
A34: 5000 | J34: =TEXT(B34,"mmm-yy") -> Jan-00
A35: 5000 | J35: Jan-00
A36: 5000 | J36: Jan-00
A37: 5000 | J37: Jan-00
A38: 5000 | J38: Jan-00
A39: 5000 | J39: Jan-00
A40: 5000 | J40: Jan-00
A41: 5000 | J41: Jan-00
A42: 5000 | J42: Jan-00
A43: 5000 | J43: Jan-00
A44: 5000 | J44: Jan-00
A45: 5000 | J45: Jan-00
A46: 5000 | J46: Jan-00
A47: 5000 | J47: Jan-00
A48: 5000 | J48: Jan-00
A49: 5000 | J49: Jan-00
A50: 5000 | J50: Jan-00
A51: 5000 | J51: Jan-00
A52: 5000 | J52: Jan-00
A53: 5000 | J53: Jan-00
A54: 5000 | J54: Jan-00
A55: 5000 | J55: Jan-00
A56: 5000 | J56: Jan-00
A57: 5000 | J57: Jan-00
A58: 5000 | J58: Jan-00
A59: 5000 | J59: Jan-00
A60: 5000 | J60: Jan-00
A61: 5000 | J61: Jan-00
A62: 5000 | J62: Jan-00
A63: 5000 | J63: Jan-00
A64: 5000 | J64: Jan-00
A65: 5000 | J65: Jan-00
A66: 5000 | J66: =TEXT(B66,"mmm-yy") -> Jan-00
A67: 5000 | J67: Jan-00
A68: 5000 | J68: Jan-00
A69: 5000 | J69: Jan-00
A70: 5000 | J70: Jan-00
A71: 5000 | J71: Jan-00
A72: 5000 | J72: Jan-00
A73: 5000 | J73: Jan-00
A74: 5000 | J74: Jan-00
A75: 5000 | J75: Jan-00
A76: 5000 | J76: Jan-00
A77: 5000 | J77: Jan-00
A78: 5000 | J78: Jan-00
A79: 5000 | J79: Jan-00
A80: 5000 | J80: Jan-00
A81: 5000 | J81: Jan-00
A82: 5000 | J82: Jan-00
A83: 5000 | J83: Jan-00
A84: 5000 | J84: Jan-00
A85: 5000 | J85: Jan-00
A86: 5000 | J86: Jan-00
A87: 5000 | J87: Jan-00
A88: 5000 | J88: Jan-00
A89: 5000 | J89: Jan-00
A90: 5000 | J90: Jan-00
A91: 5000 | J91: Jan-00
A92: 5000 | J92: Jan-00
A93: 5000 | J93: Jan-00
A94: 5000 | J94: Jan-00
A95: 5000 | J95: Jan-00
A96: 5000 | J96: Jan-00
A97: 5000 | J97: Jan-00
A98: 5000 | J98: Jan-00
A99: 5000 | J99: Jan-00
A100: 5000 | J100: Jan-00
